bitfinex/quotes_ETHUSD_20241119
["timestamp","ask_amount","ask_price","bid_price","bid_amount"]
[1732022545106,3.20773,3117.5,3116.7,0.8]
[1732022545343,3.20792,3117.3,3116.7,0.8]
[1732022545650,0.07310995,3117.4,3116.8,3.609205]
[1732022545851,0.07306439,3117.2,3116.8,3.609205]
[1732022546013,0.07307302,3117.3,3116.8,3.609205]
[1732022546345,0.07306439,3117.2,3116.9,0.4409205]
[1732022546547,0.07306439,3117.2,3116.4,3.9847]
[1732022546548,3.20824,3117.0,3116.4,3.9847]
[1732022546769,3.2084,3116.9,3116.4,0.7759]
[1732022547060,3.2084,3116.9,3116.4,3.20873]
[1732022547061,0.0730385,3116.9,3116.4,3.20873]
[1732022547218,0.0730385,3116.9,3116.5,3.20869]
[1732022547414,3.20809,3117.2,3116.5,3.20869]
[1732022547632,0.07298963,3116.8,3116.5,3.20869]
[1732022547919,0.7811,3117.4,3116.9,3.2083]
[1732022547920,3.20781,3117.4,3116.9,3.2083]
[1732022548138,3.20791,3117.3,3116.8,0.7796]
[1732022548421,0.641542,3117.4,3116.9,3.2083]
[1732022548640,0.7575,3117.7,3117.0,3.20821]
[1732022548826,3.20777,3117.5,3116.9,3.20823]
[1732022549666,3.20777,3117.5,3116.8,3.98797]
[1732022549667,3.20777,3117.5,3117.0,3.20819]
[1732022550155,3.2078,3117.4,3116.9,3.20828]
[1732022550392,3.2078,3117.4,3116.0,0.7796]
[1732022550393,0.7575,3117.3,3116.0,0.7796]
[1732022550566,1.146398,3117.3,3116.0,0.7796]
[1732022550856,3.20838,3116.9,3116.3,3.20886]
[1732022551057,3.20843,3116.8,3116.3,3.20886]
[1732022551356,3.20853,3116.7,3116.2,3.20902]
[1732022551535,6.41672,3116.9,3116.2,3.20902]
[1732022551734,3.20854,3116.7,3116.0,3.98875]
[1732022551938,3.20854,3116.7,3116.1,3.20906]
[1732022552337,0.7616,3116.6,3116.1,3.20904]
[1732022552542,3.20863,3116.6,3116.1,3.20904]
[1732022553057,3.20863,3116.6,3116.0,0.7796]
[1732022553058,3.20891,3116.4,3116.0,0.7796]
[1732022553363,3.209,3116.3,3115.7,4.04227]
[1732022553571,3.20891,3116.4,3115.7,4.04227]
[1732022553723,3.2092,3116.1,3115.7,0.8328]
[1732022554057,3.20897,3116.3,3115.6,3.3561869]
[1732022554058,3.20927,3116.0,3115.6,0.1465569]
[1732022554289,0.8074,3116.3,3115.6,0.1465569]
[1732022554617,4.01633,3116.3,3115.6,0.1465569]
[1732022554897,0.3529773,3116.4,3115.8,3.20938]
[1732022555063,0.8101,3116.6,3116.0,3.20917]
[1732022555064,4.01881,3116.6,3116.0,3.20917]
[1732022555263,7.22752,3116.6,3116.0,3.20917]
[1732022555486,0.722752,3116.5,3116.0,3.20917]
[1732022555718,4.01881,3116.6,3116.2,3.20893]
[1732022555719,0.8101,3116.6,3116.2,3.20893]
[1732022555997,3.20846,3116.8,3116.2,3.20893]
[1732022556651,3.20854,3116.7,3116.2,3.20893]
[1732022556976,3.20846,3116.8,3116.2,3.20893]
[1732022557177,7.119476,3116.8,3116.2,3.20893]
[1732022557502,3.910966,3116.8,3116.2,3.20893]
[1732022557647,3.910966,3116.8,3116.0,3.96519]
[1732022557648,3.910946,3116.8,3116.0,3.96519]
[1732022557855,3.910946,3116.8,3115.8,3.20939]
[1732022557856,3.20877,3116.5,3115.8,3.20938]
[1732022558045,0.702506,3116.8,3115.6,0.1465569]
[1732022558046,4.01296,3116.2,3115.6,0.1465569]
[1732022558286,3.20915,3116.1,3115.6,3.3561969]
[1732022558486,3.20915,3116.1,3115.6,0.1465569]
[1732022558691,0.8039,3116.2,3115.6,0.1465569]
[1732022558897,0.8039,3116.2,3115.7,3.20945]
[1732022558898,1.205188,3116.2,3115.7,3.20945]
[1732022559254,3.0,3116.4,3115.9,3.20933]
[1732022559648,3.0,3116.4,3115.7,3.2095]
[1732022559891,0.763,3116.5,3115.9,3.20931]
[1732022560063,3.98187,3116.8,3116.1,3.20909]
[1732022560264,3.20861,3116.7,3116.1,3.20909]
[1732022560477,3.28151167,3116.7,3116.1,3.20909]
[1732022560865,3.20863,3116.6,3115.9,3.20927]
[1732022561065,0.789,3116.5,3116.1,3.2091]
[1732022561275,0.8618844,3116.5,3116.1,3.2091]
[1732022561493,0.0728844,3116.5,3116.1,3.2091]
[1732022561859,0.789,3116.9,3116.1,3.2091]
[1732022562087,0.07287577,3116.4,3116.3,3.20891]
[1732022562288,3.20842,3116.8,3116.1,3.20906]
[1732022562488,0.07290097,3116.4,3116.1,3.20906]
[1732022562699,6.99734,3116.9,3116.3,3.20887]
[1732022562993,4.28802394,3116.9,3116.3,3.20887]
[1732022563407,0.7527,3117.2,3117.0,3.20812]
[1732022563568,7.00189597,3117.9,3116.9,3.2083]
[1732022563569,4.01867,3117.5,3116.9,3.2083]
[1732022563894,0.8109,3117.5,3116.9,6.4166]
[1732022564068,0.8109,3117.5,3117.0,3.20811]
[1732022564615,3.20749,3117.7,3117.1,3.20804]
[1732022564903,3.2076,3117.6,3117.1,3.20804]
[1732022565458,0.77021156,3117.7,3117.2,3.20794]
[1732022565676,3.20741,3117.8,3117.3,3.20789]
[1732022566254,3.20741,3117.8,3116.9,3.20827]
[1732022566458,3.20759,3117.6,3116.9,3.20827]
[1732022566715,3.20793,3117.3,3116.5,3.98365]
[1732022566892,1.142993,3117.2,3116.7,3.20851]
[1732022567098,3.20804,3117.2,3116.5,0.775]
[1732022567401,4.03052,3116.9,3116.3,3.20887]
[1732022567793,3.20848,3116.8,3116.1,3.96032]
[1732022567972,3.20855,3116.7,3116.1,3.20912]
[1732022568173,0.403052,3116.8,3116.3,3.20886]
[1732022568384,0.8222,3116.9,3116.5,3.20869]
[1732022568801,0.8222,3116.9,3115.9,3.99791]
[1732022568802,0.320804,3117.1,3115.9,0.7886]
[1732022568988,4.01081,3117.2,3116.6,3.20858]
[1732022569870,3.20824,3117.0,3116.2,3.20899]
[1732022570075,3.20824,3117.0,3116.2,3.20894]
[1732022570287,3.20837,3116.9,3116.3,3.2089]
[1732022570582,3.20847,3116.8,3116.2,3.20894]
[1732022570796,3.83764223,3116.8,3116.2,3.20894]
[1732022571109,3.83764223,3116.8,3116.2,6.41791]
[1732022571309,0.62917223,3116.8,3116.3,3.20886]
[1732022571675,0.62917223,3116.8,3115.9,0.7886]
[1732022571900,0.62917223,3116.8,3116.3,3.20889]
[1732022572210,3.20831,3116.9,3116.3,3.20889]
[1732022572986,3.20854,3116.7,3116.1,6.41817]
[1732022573205,3.20854,3116.7,3116.2,3.20902]
[1732022573387,3.850225,3116.7,3116.0,3.20918]
[1732022573589,3.20891,3116.4,3115.9,0.7886]
[1732022573815,3.20891,3116.4,3115.8,3.20942]
[1732022574109,3.20891,3116.4,3115.7,3.20946]
[1732022574110,0.320891,3116.3,3115.7,3.20946]
[1732022574315,0.320891,3116.3,3115.6,0.1465569]
[1732022574472,3.20887,3116.4,3115.8,3.20938]
[1732022574797,3.20901,3116.3,3115.7,3.20954]
[1732022574966,3.850779,3116.3,3115.7,3.20954]
[1732022575470,0.07026483,3116.2,3115.6,0.1465569]
[1732022575674,3.20915,3116.1,3115.6,0.1465569]
[1732022575904,4.02245,3116.1,3115.6,3.3561869]
[1732022576209,3.72727683,3116.0,3115.6,0.1465569]
[1732022576381,3.20955,3115.7,3115.6,0.1465569]
[1732022576588,0.07021598,3115.7,3115.6,0.1465569]
[1732022576789,3.20952,3115.8,3115.6,0.1465569]
[1732022576987,0.71208138,3115.7,3115.6,0.1465569]
[1732022577212,0.07018638,3115.7,3115.6,0.1465569]
[1732022577677,3.20934,3115.9,3115.6,0.1465569]
[1732022577874,0.07018495,3115.8,3115.6,0.1465569]
[1732022578077,0.32794849,3115.8,3115.6,0.1465569]
[1732022578280,0.07017632,3115.7,3115.6,0.1465569]
[1732022578515,3.20955,3115.7,3115.6,0.1465569]
[1732022578716,0.8133,3116.1,3115.6,0.1465569]
[1732022578717,4.02248,3116.1,3115.6,0.1465569]
[1732022579016,0.07017632,3115.7,3115.6,0.1465569]
[1732022579217,0.38133,3116.0,3115.6,0.1465569]
[1732022579431,0.07017318,3115.7,3115.6,3.3562069]
[1732022579724,7.00654,3116.4,3115.6,0.1465569]
[1732022579875,7.00654,3116.4,3115.8,3.20941]
[1732022580373,4.00654,3116.4,3115.8,3.20935]
[1732022580578,0.7977,3116.4,3115.6,3.3561469]
[1732022580914,4.0066,3116.4,3115.9,3.20928]
[1732022581228,4.0066,3116.4,3115.8,3.20943]
[1732022581706,3.20893,3116.3,3115.8,3.20943]
[1732022582016,0.7977,3116.4,3115.8,3.20943]
[1732022582193,4.00654,3116.4,3115.8,3.20943]
[1732022582388,3.20925,3116.0,3115.6,0.1465569]
[1732022582943,3.20909,3116.2,3115.6,0.1465569]
[1732022583232,0.320909,3116.1,3115.7,3.20947]
[1732022583389,5.10454938,3116.4,3115.8,3.20943]
[1732022583723,0.51045494,3116.3,3115.8,3.20938]
[1732022583922,0.51045494,3116.3,3115.8,6.41876]
[1732022584238,0.51045494,3116.3,3115.7,3.20955]
[1732022584529,0.51045494,3116.3,3115.6,0.1465569]
[1732022584530,3.20916,3116.1,3115.6,0.1465569]
[1732022584673,3.20925,3116.0,3115.6,0.1465569]
[1732022584877,0.7934,3115.8,3115.6,0.1465569]
[1732022585390,3.20955,3115.7,3115.6,0.1465569]
[1732022586527,3.20955,3115.7,3115.1,0.005]
[1732022586528,3.21006,3115.2,3115.1,0.005]
[1732022586734,4.00096,3115.2,3115.1,0.005]
[1732022586903,4.00096,3115.2,3114.4,0.005]
[1732022586904,0.7909,3114.5,3114.4,0.005]
[1732022588264,3.79451597,3115.1,3114.4,0.005]
[1732022588265,6.96587,3114.9,3114.4,0.005]
[1732022588404,3.96595,3114.9,3114.4,0.005]
[1732022588604,3.696595,3114.8,3114.4,0.005]
[1732022588844,0.7555,3115.8,3114.8,3.21042]
[1732022589044,3.20959,3115.7,3115.1,3.21015]
[1732022589205,0.7555,3115.8,3114.6,3.21059]
[1732022589405,0.7555,3115.1,3114.6,3.21064]
[1732022589607,3.21008,3115.2,3114.4,3.21585]
[1732022589608,0.6367285,3115.4,3115.0,3.21027]
[1732022589814,0.7555,3115.5,3114.8,3.21042]
[1732022590015,0.7555,3115.5,3114.6,3.21061]
[1732022590250,0.7555,3115.3,3114.6,3.21061]
[1732022590419,3.7555,3115.3,3114.5,3.21078]
[1732022590619,3.27783557,3115.2,3114.6,3.21066]
[1732022590927,3.27783557,3115.2,3114.5,3.21072]
[1732022590928,3.21024,3115.1,3114.5,3.21072]
[1732022591127,1.45881229,3115.3,3114.4,0.005]
[1732022591128,0.7555,3114.9,3114.4,0.005]
[1732022591329,0.47099583,3114.8,3114.4,0.005]
[1732022591530,3.21069,3114.6,3114.4,0.005]
[1732022591729,0.06763451,3114.5,3114.4,0.005]
[1732022592337,3.21075,3114.6,3114.4,0.005]
[1732022592668,0.70977162,3114.5,3114.4,0.005]
[1732022592970,0.06763262,3114.5,3114.4,0.005]
[1732022593168,3.0,3114.7,3114.4,0.005]
[1732022593332,0.0676249,3114.6,3114.4,0.005]
[1732022593663,0.0676249,3114.6,3114.4,3.21588]
[1732022593963,3.96588,3114.9,3114.4,3.21588]
[1732022594263,0.06760625,3114.8,3114.5,3.21071]
[1732022594480,0.06760625,3114.8,3114.4,0.005]
[1732022595163,3.27816625,3114.8,3114.4,0.005]
[1732022595457,0.06760625,3114.8,3114.4,0.005]
[1732022595623,0.06760625,3114.8,3114.4,3.21588]
[1732022595828,0.06760625,3114.8,3114.4,0.005]
[1732022596072,0.47510923,3114.7,3114.4,0.005]
[1732022596380,0.06760156,3114.6,3114.4,0.005]
[1732022596665,0.06760156,3114.6,3114.5,4.02348]
[1732022596867,0.06760156,3114.6,3114.5,3.21078]
[1732022597039,3.0,3115.1,3114.5,3.21078]
[1732022597238,0.06760282,3114.6,3114.5,3.21078]
[1732022597463,0.06760282,3114.6,3114.4,0.005]
[1732022597464,3.79451597,3114.6,3114.4,0.005]
[1732022597667,7.02728,3114.5,3114.4,0.005]
[1732022597827,8.43728688,3114.5,3114.4,0.005]
[1732022598032,8.50488106,3114.5,3114.4,0.005]
[1732022598300,8.51488106,3114.5,3114.4,0.005]
[1732022598469,8.50488106,3114.5,3114.4,0.005]
[1732022599069,9.14064851,3114.5,3114.4,0.005]
[1732022599367,8.50488106,3114.5,3114.4,0.005]
[1732022599568,5.92081638,3114.5,3114.4,0.005]
[1732022599781,9.13159638,3114.5,3114.4,0.005]
[1732022601231,9.68159638,3114.5,3114.4,0.005]
[1732022602242,9.13159638,3114.5,3114.4,0.005]
[1732022604637,0.7897,3113.6,3113.4,0.875]
[1732022605079,0.06513749,3113.5,3113.4,0.875]
[1732022605640,3.27694749,3113.5,3113.4,0.875]
[1732022605870,0.06513749,3113.5,3113.4,0.875]
[1732022607251,3.27694749,3113.5,3113.4,0.875]
[1732022607453,4.00478524,3113.5,3113.4,0.875]
[1732022607649,0.79297524,3113.5,3113.4,0.875]
[1732022608145,0.06513749,3113.5,3113.4,0.875]
[1732022608355,3.0,3113.9,3113.4,0.875]
[1732022608551,0.06512866,3113.5,3113.4,0.875]
[1732022608793,6.21141,3113.9,3113.4,0.875]
[1732022608978,0.06512866,3113.5,3113.4,0.875]
[1732022609325,0.7952,3114.0,3113.5,3.21176]
[1732022609645,3.65024725,3114.1,3113.6,3.21164]
[1732022609911,3.79451597,3113.7,3113.4,0.875]
[1732022610066,3.0,3113.9,3113.4,0.875]
[1732022610699,3.0,3112.6,3112.0,0.25]
[1732022610886,0.7982,3112.7,3112.0,0.25]
[1732022610887,3.21326,3112.1,3112.0,0.25]
[1732022611092,6.21326,3112.1,3112.0,0.25]
[1732022611385,0.64809491,3112.3,3112.0,0.25]
[1732022611614,6.21303,3112.4,3112.0,0.25]
[1732022611762,1.0007546,3112.4,3112.0,0.25]
[1732022611953,3.21285,3112.5,3112.0,0.25]
[1732022612155,4.01085,3112.7,3112.0,0.25]
[1732022612156,3.21283,3112.6,3112.0,0.25]
[1732022612349,6.8413305,3112.6,3112.0,0.25]
[1732022612565,0.6285705,3112.6,3112.0,3.46336]
[1732022612878,3.21291,3112.5,3112.0,0.596336]
[1732022613055,3.21291,3112.5,3112.0,0.25]
[1732022613598,3.21304,3112.4,3112.0,0.25]
[1732022613754,3.21306,3112.3,3112.0,0.25]
[1732022613950,3.534496,3112.2,3112.0,0.25]
[1732022614145,3.534476,3112.2,3112.0,0.25]
[1732022614367,3.21326,3112.1,3112.0,0.25]
[1732022615318,7.82117597,3112.1,3112.0,0.25]
[1732022617001,10.82117597,3112.1,3112.0,0.25]
[1732022617161,10.82117597,3112.1,3110.2,3.22517]
[1732022617162,3.97701,3111.0,3110.4,3.21493]
[1732022617363,3.0,3111.7,3111.1,3.21426]
[1732022617364,0.7626,3111.7,3111.1,3.21426]
[1732022617578,3.0,3112.0,3111.4,3.21397]
[1732022617898,3.63523681,3112.0,3111.4,3.21397]
[1732022618216,3.63523681,3112.0,3111.5,3.21388]
[1732022618217,4.13944128,3112.0,3111.5,3.21388]
[1732022618381,4.54591597,3112.1,3111.2,0.7675]
[1732022618698,4.54591597,3112.5,3112.0,3.21332]
[1732022618908,5.81459836,3112.5,3111.8,3.2135]
[1732022619059,5.16818097,3112.5,3112.0,3.21335]
[1732022619259,4.41678097,3112.5,3111.9,3.21344]
[1732022619455,7.62963097,3112.5,3111.8,3.2135]
[1732022619775,3.9759331,3112.4,3111.8,3.2135]
[1732022619977,0.7629631,3112.4,3111.9,3.2134]
[1732022620289,0.65239321,3112.7,3110.9,0.8138]
[1732022620476,3.21457,3110.9,3110.4,0.8138]
[1732022620816,0.05987258,3110.8,3110.4,0.8138]
[1732022620965,0.05987258,3110.8,3110.2,3.21519]
[1732022620966,3.21519,3110.3,3109.4,3.3575169]
[1732022621165,3.21514,3110.3,3109.6,3.21577]
[1732022621402,0.05986287,3110.2,3109.6,3.21577]
[1732022621583,3.27517287,3110.2,3109.4,0.1415569]
[1732022621778,0.05986287,3110.2,3109.4,0.1415569]
[1732022621986,3.0,3111.0,3109.9,0.7516]
[1732022621987,3.21503,3110.4,3109.9,0.7516]
[1732022622328,3.21503,3110.4,3109.4,0.1415569]
[1732022622329,3.21583,3109.7,3109.4,0.1415569]
[1732022622481,3.8272,3110.3,3109.4,0.1415569]
[1732022622482,4.04235,3110.3,3109.4,0.1415569]
[1732022622802,3.21523,3110.2,3109.5,0.7679]
[1732022623002,3.27519421,3110.1,3109.6,0.41254369]
[1732022623318,3.2155,3110.0,3109.4,0.1415569]
[1732022623461,3.21595,3109.5,3109.4,0.1415569]
[1732022623960,3.27564668,3109.5,3109.4,0.1415569]
[1732022624806,0.05969668,3109.5,3109.4,0.1415569]
[1732022625009,3.21595,3109.5,3109.4,0.1415569]
[1732022625191,3.27543751,3109.5,3109.4,0.1415569]
[1732022625397,0.05948751,3109.5,3109.4,0.1415569]
[1732022625720,3.21583,3109.7,3109.4,0.1415569]
[1732022625883,10.06993893,3109.5,3109.4,0.1415569]
[1732022626084,6.21595,3109.5,3109.4,0.1415569]
[1732022626267,0.05945839,3109.5,3109.4,0.1415569]
[1732022626668,3.21583,3109.7,3109.4,0.1415569]
[1732022626893,0.05747655,3109.5,3109.4,0.1415569]
[1732022627110,3.85844383,3110.1,3109.4,3.3575369]
[1732022627295,0.05746058,3109.5,3109.4,0.47731059]
[1732022627470,3.21535,3110.1,3109.4,0.1415569]
[1732022627669,0.05746058,3109.5,3109.4,0.1415569]
[1732022627869,0.8325,3110.4,3109.4,0.1415569]
[1732022627870,3.0,3110.4,3109.5,0.8172]
[1732022628302,3.27268911,3110.3,3109.6,3.21578]
[1732022628636,0.05754911,3110.3,3109.8,3.21561]
[1732022628912,0.05754911,3110.3,3110.2,3.21522]
[1732022629452,3.21437,3111.1,3110.3,3.21511]
[1732022629614,3.21437,3111.1,3110.3,6.43015]
[1732022629811,3.21448,3111.0,3110.3,3.21504]
[1732022630102,0.4617516,3111.4,3110.3,3.21504]
[1732022630103,3.21427,3111.2,3110.5,3.21485]
[1732022630337,3.21436,3111.1,3110.4,3.21501]
[1732022630492,3.78759967,3111.3,3110.5,3.21487]
[1732022630687,1.47862915,3111.5,3110.8,3.2145]
[1732022630935,3.214,3111.4,3110.7,3.21464]
[1732022631140,0.65562915,3111.5,3111.0,3.21432]
[1732022633095,0.65562915,3111.5,3111.0,3.21431]
[1732022633528,0.38694792,3111.4,3110.8,3.21456]
[1732022633750,3.2141,3111.3,3110.6,4.02563]
[1732022634048,0.38694792,3111.4,3110.6,0.8109]
[1732022634250,0.65562915,3111.5,3111.0,3.21432]
[1732022634551,0.65562915,3111.5,3111.2,3.21411]
[1732022635048,0.65562915,3111.5,3111.4,3.21398]
[1732022635257,3.21314,3112.3,3111.6,3.21371]
[1732022635541,0.399404,3112.2,3111.8,3.21353]
[1732022635756,0.7809,3112.4,3111.8,3.21353]
[1732022635757,3.99386,3112.4,3111.8,3.21353]
[1732022636125,3.21276,3112.6,3111.8,3.21353]
[1732022636337,3.97759127,3112.6,3112.0,3.21335]
[1732022637067,3.21285,3112.5,3112.0,3.21335]
[1732022637562,3.21312,3112.3,3111.5,3.21379]
[1732022637770,3.21312,3112.3,3111.7,3.2136]
[1732022638169,3.21312,3112.3,3111.5,3.21379]
[1732022638170,3.21322,3112.2,3111.5,3.21379]
[1732022638391,0.36108881,3112.2,3111.5,3.21379]
[1732022638674,0.36108881,3112.2,3111.8,3.21354]
[1732022638874,3.21288,3112.5,3111.9,3.21345]
[1732022639385,0.76483127,3112.6,3111.5,3.21387]
[1732022639386,3.21332,3112.1,3111.5,3.21387]
[1732022640127,3.21309,3112.3,3111.6,3.21377]
[1732022640128,6.42622,3112.3,3111.6,3.21377]
[1732022640327,0.68239911,3112.3,3111.7,3.21365]
[1732022640528,3.21299,3112.4,3111.7,3.21365]
[1732022640739,0.7859,3112.8,3111.4,0.8247]
[1732022640740,3.21254,3112.8,3112.2,3.21306]
[1732022640940,3.533794,3112.8,3112.2,3.21306]
[1732022641142,3.21266,3112.7,3112.2,3.99836]
[1732022641404,3.21266,3112.7,3111.5,3.99915]
[1732022641526,3.5661614,3112.6,3112.0,3.21326]
[1732022641931,3.5661614,3112.6,3111.9,3.21344]
[1732022642230,3.5661614,3112.6,3111.5,0.7853]
[1732022642574,3.56948614,3112.5,3111.9,3.2134]
[1732022642785,0.35661614,3112.5,3112.1,3.21319]
[1732022642989,3.7504,3113.2,3111.5,0.7853]
[1732022643282,3.21223,3113.1,3112.4,3.99676]
[1732022643480,4.92550944,3113.6,3112.9,3.21234]
[1732022643706,0.7825,3113.6,3112.9,3.21234]
[1732022643984,3.21151,3113.8,3113.1,3.21214]
[1732022644277,3.21151,3113.8,3113.2,3.21204]
[1732022644473,3.21171,3113.6,3113.1,0.7878]
[1732022644696,0.321171,3113.5,3113.2,3.21212]
[1732022644896,3.86912033,3114.0,3113.3,3.21201]
[1732022645101,3.21141,3113.9,3113.3,3.21201]
[1732022645301,0.70805303,3113.8,3113.4,3.21189]
[1732022645596,3.86912033,3114.0,3113.4,3.21189]
[1732022645947,3.21133,3114.0,3113.4,3.21189]
[1732022646150,0.7015626,3114.1,3113.4,3.21189]
[1732022646151,3.2114,3113.9,3113.4,3.21189]
[1732022646369,3.21125,3114.1,3113.4,3.21189]
[1732022646666,3.21101,3114.3,3113.5,3.21179]
[1732022646865,3.21124,3114.1,3113.5,3.21179]
[1732022647064,3.2111,3114.2,3113.6,3.2117]
[1732022647304,3.21101,3114.3,3113.6,3.2117]
[1732022647478,0.321101,3114.2,3113.6,3.2117]
[1732022647678,0.321101,3114.2,3113.7,3.21159]
[1732022648050,0.321101,3114.2,3113.8,3.2115]
[1732022648303,3.21089,3114.4,3113.9,0.7575]
[1732022648545,0.64468463,3114.8,3113.9,0.7575]
[1732022648546,3.21084,3114.5,3113.9,3.96887]
[1732022648895,7.01107176,3114.7,3113.9,3.96887]
[1732022649111,3.80042176,3114.7,3114.1,3.21119]
[1732022649324,0.44451064,3114.6,3114.1,3.21119]
[1732022649744,0.44451064,3114.6,3113.9,0.7575]
[1732022649745,3.21102,3114.3,3113.9,0.7575]
[1732022649952,0.44451064,3114.6,3113.9,0.7575]
[1732022650138,0.44451064,3114.6,3113.4,3.21188]
[1732022650139,3.21156,3113.8,3113.5,0.7806]
[1732022650317,3.21178,3113.6,3112.8,3.97756]
[1732022650532,3.21178,3113.6,3113.0,3.21226]
[1732022650533,3.21182,3113.5,3113.0,3.21226]
[1732022650843,3.26544422,3113.5,3113.0,3.21226]
[1732022651010,3.26544422,3113.5,3113.2,3.21212]
[1732022651011,0.05362422,3113.5,3113.2,3.21212]
[1732022651217,0.321156,3113.8,3113.3,3.21201]
[1732022651415,0.321156,3113.8,3113.4,3.21184]
[1732022651598,3.21089,3114.4,3113.5,0.7708]
[1732022651914,3.21127,3114.1,3113.5,0.7708]
[1732022652250,3.532487,3114.0,3113.5,0.7708]
[1732022652413,6.42232,3114.2,3113.5,3.98255]
[1732022652609,3.21136,3114.0,3113.5,0.7708]
[1732022652826,0.64225,3114.0,3113.5,0.7708]
[1732022653027,3.21114,3114.2,3113.5,0.7708]
[1732022653343,3.21114,3114.2,3113.6,3.21165]
[1732022653498,3.21093,3114.4,3113.6,3.21165]
[1732022653700,3.21093,3114.4,3113.6,3.21163]
[1732022653906,3.99423,3114.6,3113.7,3.21154]
[1732022654141,3.21104,3114.3,3113.6,3.21161]
[1732022654439,3.21063,3114.7,3114.2,0.8102]
[1732022654625,0.64468463,3114.8,3114.2,4.02122]
[1732022654812,0.38551046,3114.7,3114.2,0.8102]
[1732022654997,3.21065,3114.7,3114.2,0.8102]
[1732022655394,3.21049,3114.8,3114.2,4.02127]
[1732022655598,3.21065,3114.7,3114.2,0.8102]
[1732022655827,3.21006,3115.2,3114.2,0.8102]
[1732022655828,3.21031,3115.0,3114.4,3.21088]
[1732022656036,3.21038,3114.9,3114.4,3.21088]
[1732022656209,0.36663316,3115.1,3114.5,3.21077]
[1732022656411,3.2101,3115.2,3114.6,3.21067]
[1732022656659,0.4562716,3115.3,3114.6,3.21067]
[1732022656852,3.6662916,3115.3,3114.6,3.21067]
[1732022657155,3.6662916,3115.3,3114.4,3.21085]
[1732022657156,3.89775816,3115.2,3114.5,0.7983]
[1732022657310,0.68761816,3115.2,3114.6,3.21067]
[1732022657510,3.79451597,3115.8,3114.5,0.7983]
[1732022657718,3.21068,3114.6,3113.9,0.7814]
[1732022657916,3.21085,3114.5,3113.9,0.7814]
[1732022658152,3.21068,3114.6,3113.9,3.99274]
[1732022658153,6.42145,3114.6,3113.9,3.99274]
[1732022658424,0.8171,3115.2,3113.9,3.99274]
[1732022658425,3.21016,3115.1,3114.5,3.21069]
[1732022658624,3.20999,3115.3,3114.6,3.2106]
[1732022658873,3.21015,3115.2,3114.6,3.2106]
[1732022659218,3.21006,3115.2,3114.2,3.21109]
[1732022659471,3.21018,3115.1,3114.5,3.21071]
[1732022659768,3.21018,3115.1,3114.6,3.21068]
[1732022659989,3.21001,3115.3,3114.7,3.21057]
[1732022660264,3.21001,3115.3,3114.2,0.7767]
[1732022660265,0.62734725,3115.6,3115.0,3.21026]
[1732022660428,0.62734725,3115.6,3115.1,3.2101]
[1732022661140,0.62734725,3115.6,3114.9,0.8307]
[1732022661342,3.83707725,3115.6,3114.9,0.8307]
[1732022661547,3.83707725,3115.6,3115.0,3.21026]
[1732022661761,3.20983,3115.5,3114.9,0.8307]
[1732022662054,3.83707725,3115.6,3114.9,0.8307]
[1732022662055,0.62734725,3115.6,3114.9,0.8307]
[1732022662237,3.20981,3115.5,3114.9,4.04105]
[1732022662677,0.62734725,3115.6,3114.6,3.2106]
[1732022662678,3.21012,3115.2,3114.6,3.2106]
[1732022662971,0.8274,3115.4,3114.4,3.21086]
[1732022663175,3.21014,3115.2,3114.6,3.21061]
[1732022663368,4.03729,3115.4,3114.7,3.21057]
[1732022663600,3.20989,3115.4,3114.8,3.21038]
[1732022663807,3.83705725,3115.6,3114.8,3.21038]
[1732022664013,3.20988,3115.4,3114.9,3.21031]
[1732022664310,0.62734725,3115.6,3115.0,0.801]
[1732022664603,0.62734725,3115.6,3115.1,3.2101]
[1732022664801,3.20946,3115.8,3115.3,3.20995]
[1732022665003,3.612648,3115.8,3115.3,3.20995]
[1732022665208,3.20972,3115.6,3115.0,0.801]
[1732022665409,3.20972,3115.6,3115.0,4.01126]
[1732022665574,0.05018422,3115.5,3115.1,3.21015]
[1732022665775,0.05018422,3115.5,3115.1,6.42024]
[1732022666113,3.20957,3115.7,3115.2,3.21005]
[1732022666263,0.05017558,3115.4,3115.3,3.2099]
[1732022666464,3.85875269,3115.8,3115.4,3.20984]
[1732022666465,0.64925269,3115.8,3115.4,3.20984]
[1732022667562,0.64925269,3115.8,3115.4,3.20979]
[1732022667699,0.64925269,3115.8,3115.5,0.7852]
[1732022668295,0.64925269,3115.8,3115.5,3.99494]
[1732022668702,0.64925269,3115.8,3115.7,3.20955]
[1732022669697,0.64925269,3115.8,3115.5,3.99494]
[1732022669911,3.85871269,3115.8,3115.5,0.7852]
[1732022670140,3.85871269,3115.8,3115.3,3.20995]
[1732022670301,0.64925269,3115.8,3115.4,3.20984]
[1732022670996,0.64925269,3115.8,3115.4,3.2098]
[1732022671192,0.64925269,3115.8,3115.3,3.20994]
[1732022671440,0.64925269,3115.8,3115.4,3.20985]
[1732022671649,0.64925269,3115.8,3115.3,3.20994]
[1732022671961,3.20878,3116.5,3115.7,3.20955]
[1732022672163,3.20898,3116.3,3115.7,3.20951]
[1732022672318,3.20898,3116.3,3115.7,3.20948]
[1732022672681,3.20893,3116.4,3115.7,6.41893]
[1732022672870,3.20899,3116.3,3115.7,3.20945]
[1732022673405,0.7798436,3116.5,3115.3,0.403394]
[1732022673673,3.2092,3116.1,3115.5,3.20968]
[1732022673955,3.2092,3116.1,3115.4,3.20986]
[1732022674157,3.2092,3116.1,3115.5,3.20969]
[1732022675172,3.20924,3116.0,3115.2,4.03401]
[1732022675359,3.20949,3115.8,3115.3,3.20993]
[1732022675764,3.20948,3115.8,3115.2,4.03405]